[Event "21st Indian-chT Women 2023-24"]
[Site "Dharamsala"]
[Date "2024.04.04"]
[Round "7.4"]
[White "Soumya, Swaminathan"]
[Black "Rajasurya, J.."]
[Result "1-0"]
[ECO "B33"]
[WhiteElo "2259"]
[BlackElo "1710"]
[Annotator "RC"]
[PlyCount "63"]
[EventDate "2024.03.28"]
[EventType "team-tourn"]
[EventCountry "IND"]
[SourceTitle "playchess.com"]
[Source "ChessBase"]
[SourceQuality "1"]
[TimeControl "5400+30"]

1. e4 {[%emt 0:00:14]} c5 {[%emt 0:00:06]} 2. Nf3 {[%emt 0:00:03]} Nc6 {[%emt 0:00:06]} 3. d4 {[%emt 0:00:05]} cxd4 {[%emt 0:00:04]} 4. Nxd4 {[%emt 0:00:03]} Nf6 {[%emt 0:00:04]} 5. Nc3 {[%emt 0:00:08]} e5 {[%emt 0:00:03]} 6. Ndb5 {[%emt 0:00:12]} d6 {[%emt 0:00:05]} 7. Nd5 {[%emt 0:00:11]} Nxd5 {[%emt 0:00:08]} 8. exd5 {[%emt 0:00:03]} Nb8 {[%emt 0:00:08]} 9. c4 {[%emt 0:00:12]} a6 {[%emt 0:00:36]} 10. Qa4 {[%emt 0:05:04]} Bd7 {[%emt 0:04:00]} 11. Qa3 {[%emt 0:01:42]} Bxb5 {[%emt 0:04:07]} 12. cxb5 {[%emt 0:00:04]} Nd7 {[%emt 0:01:25]} 13. bxa6 {[%emt 0:06:24]} bxa6 {[%emt 0:00:07]} 14. Bd2 {[%emt 0:03:41]} Be7 {[%emt 0:05:49]} 15. Rc1 {[%emt 0:07:03]} a5 {[%emt 0:02:36]} 16. Bb5 {[%emt 0:00:37]} O-O {[%emt 0:00:52]} 17. Bc6 {[%emt 0:03:40]} Ra6 {[%emt 0:03:18]} 18. b4 {[%emt 0:02:13]} Bg5 {[%emt 0:00:59]} 19. Bxg5 {[%emt 0:05:30]} Qxg5 {[%emt 0:00:36]} 20. O-O {[%emt 0:05:49]} Qe7 {[%emt 0:21:30]} 21. b5 {[%emt 0:04:12]} Ra7 {[%emt 0:00:08]} 22. Bxd7 {[%emt 0:00:39]} Qxd7 {[%emt 0:00:22]} 23. Rc6 {[%emt 0:01:17]} Rd8 {[%emt 0:02:47]} 24. Rb1 {[%emt 0:02:03]} Raa8 {[%emt 0:14:47]} 25. b6 {[%emt 0:00:46]} Qf5 {[%emt 0:00:19]} 26. Rbc1 {[%emt 0:01:11]} e4 {[%emt 0:00:11]} 27. b7 {[%emt 0:04:13]} Rab8 {[%emt 0:01:26]} 28. Qxa5 {[%emt 0:00:07]} Re8 {[%emt 0:01:06]} 29. Qa7 {[%emt 0:02:59]} Rbd8 {[%emt 0:04:19]} 30. Qb6 {[%emt 0:01:04]} e3 {[%emt 0:12:04]} 31. fxe3 {[%emt 0:01:07]} Qg5 {[%emt 0:00:59]} 32. Rc8 {[%emt 0:00:29]} 1-0

[Event "21st Indian-chT Women 2023-24"]
[Site "Dharamsala"]
[Date "2024.04.04"]
[Round "7.5"]
[White "Kiran, Manisha Mohanty"]
[Black "Singh, Neha"]
[Result "1-0"]
[ECO "C42"]
[WhiteElo "2036"]
[BlackElo "1825"]
[Annotator "RC"]
[PlyCount "122"]
[EventDate "2024.03.28"]
[EventType "team-tourn"]
[EventCountry "IND"]
[SourceTitle "playchess.com"]
[Source "ChessBase"]
[SourceQuality "1"]
[TimeControl "5400+30"]

1. e4 {[%emt 0:00:06]} e5 {[%emt 0:00:02]} 2. Nf3 {[%emt 0:00:06]} Nf6 {[%emt 0:00:05]} 3. Nxe5 {[%emt 0:00:25]} d6 {[%emt 0:00:04]} 4. Nf3 {[%emt 0:00:06]} Nxe4 {[%emt 0:00:06]} 5. Qe2 {[%emt 0:00:35]} Qe7 {[%emt 0:00:09]} 6. d3 {[%emt 0:00:07]} Nf6 {[%emt 0:00:04]} 7. Bg5 {[%emt 0:00:06]} Qxe2+ {[%emt 0:01:11]} 8. Bxe2 {[%emt 0:00:45]} Be7 {[%emt 0:00:02]} 9. Nc3 {[%emt 0:00:11]} c6 {[%emt 0:00:32]} 10. O-O-O {[%emt 0:00:15]} b5 {[%emt 0:09:23]} 11. h3 {[%emt 0:05:13]} h6 {[%emt 0:01:06]} 12. Bh4 {[%emt 0:00:56]} b4 {[%emt 0:03:01]} 13. Ne4 {[%emt 0:00:38]} Nbd7 {[%emt 0:02:03]} 14. Bg3 {[%emt 0:00:48]} Nxe4 {[%emt 0:07:47]} 15. dxe4 {[%emt 0:00:02]} Nc5 {[%emt 0:00:32]} 16. Bxd6 {[%emt 0:04:16]} Nxe4 {[%emt 0:00:47]} 17. Bxe7 {[%emt 0:00:11]} Kxe7 {[%emt 0:00:03]} 18. Rhe1 {[%emt 0:01:25]} Be6 {[%emt 0:26:41]} 19. Bc4 {[%emt 0:06:19]} Nc5 {[%emt 0:01:00]} 20. Nd4 {[%emt 0:06:20]} Rhc8 {[%emt 0:12:32]} 21. Re5 {[%emt 0:02:45]} Nd7 {[%emt 0:00:12]} 22. Re3 {[%emt 0:00:07]} Nf8 {[%emt 0:00:50]} 23. Nxe6 {[%emt 0:03:05]} Nxe6 {[%emt 0:05:26]} 24. Bxe6 {[%emt 0:12:54]} fxe6 {[%emt 0:00:04]} 25. Rde1 {[%emt 0:00:04]} Rc7 {[%emt 0:00:35]} 26. Rxe6+ {[%emt 0:00:08]} Kf7 {[%emt 0:00:04]} 27. f4 {[%emt 0:00:33]} Rd8 {[%emt 0:02:26]} 28. g4 {[%emt 0:00:16]} Rd5 {[%emt 0:02:30]} 29. R6e5 {[%emt 0:01:05]} Rd6 {[%emt 0:03:15]} 30. Rf5+ {[%emt 0:01:04]} Kg6 {[%emt 0:01:57]} 31. Rc5 {[%emt 0:06:23]} Rf7 {[%emt 0:02:58]} 32. Re4 {[%emt 0:00:16]} Rfd7 {[%emt 0:00:19]} 33. b3 {[%emt 0:01:20]} Rb7 {[%emt 0:04:11]} 34. Rec4 {[%emt 0:00:14]} Rb6 {[%emt 0:00:05]} 35. h4 {[%emt 0:01:02]} Kf7 {[%emt 0:00:52]} 36. Ra5 {[%emt 0:01:52]} Rd7 {[%emt 0:00:37]} 37. Rf5+ {[%emt 0:00:18]} Ke8 {[%emt 0:03:52]} 38. Rfc5 {[%emt 0:03:34]} Rd6 {[%emt 0:00:19]} 39. Re4+ {[%emt 0:00:34]} Kd7 {[%emt 0:00:28]} 40. Rce5 {[%emt 0:00:19]} Kc7 {[%emt 0:02:44]} 41. h5 {[%emt 0:02:37]} Rb8 {[%emt 0:03:50]} 42. f5 {[%emt 0:03:22]} a6 {[%emt 0:01:58]} 43. Re7+ {[%emt 0:08:27]} Rd7 {[%emt 0:00:16]} 44. R7e6 {[%emt 0:00:21]} a5 {[%emt 0:01:32]} 45. Re7 {[%emt 0:03:19]} Rbd8 {[%emt 0:00:47]} 46. Rxd7+ {[%emt 0:00:12]} Rxd7 {[%emt 0:00:02]} 47. Re5 {[%emt 0:00:48]} Kb6 {[%emt 0:01:31]} 48. Re6 {[%emt 0:00:05]} Kc5 {[%emt 0:01:15]} 49. Rg6 {[%emt 0:00:09]} Kb5 {[%emt 0:00:55]} 50. f6 {[%emt 0:00:32]} gxf6 {[%emt 0:00:04]} 51. Rxh6 {[%emt 0:00:07]} Rf7 {[%emt 0:00:59]} 52. Kd2 {[%emt 0:00:41]} a4 {[%emt 0:00:05]} 53. Rg6 {[%emt 0:00:56]} f5 {[%emt 0:00:57]} 54. Rg5 {[%emt 0:01:12]} Rd7+ {[%emt 0:00:22]} 55. Ke2 {[%emt 0:01:25]} Re7+ {[%emt 0:00:06]} 56. Kf2 {[%emt 0:00:08]} axb3 {[%emt 0:00:13]} 57. axb3 {[%emt 0:00:14]} Kc5 {[%emt 0:00:09]} 58. Rxf5+ {[%emt 0:00:08]} Kd4 {[%emt 0:00:04]} 59. Rf4+ {[%emt 0:00:09]} Kc5 {[%emt 0:00:31]} 60. h6 {[%emt 0:00:14]} Rd7 {[%emt 0:00:10]} 61. Rc4+ {[%emt 0:00:22]} Kd5 {[%emt 0:01:32]} 1-0

[Event "21st Indian-chT Women 2023-24"]
[Site "Dharamsala"]
[Date "2024.04.04"]
[Round "7.6"]
[White "Marium Fatima"]
[Black "Swati Ghate"]
[Result "0-1"]
[ECO "E01"]
[WhiteElo "1903"]
[BlackElo "2012"]
[Annotator "RC"]
[PlyCount "96"]
[EventDate "2024.03.28"]
[EventType "team-tourn"]
[EventCountry "IND"]
[SourceTitle "playchess.com"]
[Source "ChessBase"]
[SourceQuality "1"]
[TimeControl "5400+30"]

1. d4 {[%emt 0:00:05]} Nf6 {[%emt 0:01:43]} 2. Nf3 {[%emt 0:00:11]} e6 {[%emt 0:00:17]} 3. c4 {[%emt 0:00:30]} c5 {[%emt 0:00:52]} 4. g3 {[%emt 0:00:16]} cxd4 {[%emt 0:00:28]} 5. Nxd4 {[%emt 0:00:08]} d5 {[%emt 0:00:47]} 6. Bg2 {[%emt 0:02:53]} e5 {[%emt 0:00:21]} 7. Nf3 {[%emt 0:01:35]} d4 {[%emt 0:00:12]} 8. O-O {[%emt 0:00:21]} Nc6 {[%emt 0:00:48]} 9. Bg5 {[%emt 0:01:35]} Be7 {[%emt 0:03:19]} 10. a3 {[%emt 0:03:03]} a5 {[%emt 0:00:47]} 11. Qc2 {[%emt 0:00:37]} O-O {[%emt 0:06:08]} 12. Bxf6 {[%emt 0:00:54]} Bxf6 {[%emt 0:00:03]} 13. Rd1 {[%emt 0:01:57]} Be6 {[%emt 0:11:30]} 14. Nbd2 {[%emt 0:02:54]} Be7 {[%emt 0:04:26]} 15. Nf1 {[%emt 0:03:50]} Qb6 {[%emt 0:15:19]} 16. e3 {[%emt 0:02:30]} Rfd8 {[%emt 0:00:34]} 17. exd4 {[%emt 0:00:14]} exd4 {[%emt 0:00:11]} 18. h3 {[%emt 0:06:21]} a4 {[%emt 0:05:50]} 19. N1h2 {[%emt 0:01:58]} d3 {[%emt 0:19:03]} 20. Rxd3 {[%emt 0:01:19]} Rxd3 {[%emt 0:00:05]} 21. Qxd3 {[%emt 0:00:05]} Qxb2 {[%emt 0:00:06]} 22. Qd1 {[%emt 0:05:06]} Bc5 {[%emt 0:03:11]} 23. Nd2 {[%emt 0:04:54]} Rd8 {[%emt 0:02:12]} 24. Nhf1 {[%emt 0:04:18]} Ne5 {[%emt 0:04:00]} 25. Rb1 {[%emt 0:02:36]} Qd4 {[%emt 0:02:50]} 26. Qe2 {[%emt 0:01:46]} b6 {[%emt 0:05:43]} 27. Nf3 {[%emt 0:01:29]} Nxf3+ {[%emt 0:00:23]} 28. Qxf3 {[%emt 0:00:10]} Qxc4 {[%emt 0:00:41]} 29. Ne3 {[%emt 0:05:51]} Qa2 {[%emt 0:02:02]} 30. Rd1 {[%emt 0:00:35]} Rxd1+ {[%emt 0:02:59]} 31. Qxd1 {[%emt 0:00:09]} Qxa3 {[%emt 0:00:08]} 32. Qd8+ {[%emt 0:06:07]} Bf8 {[%emt 0:00:01]} 33. Nd5 {[%emt 0:00:34]} Qd6 {[%emt 0:02:59]} 34. Qa8 {[%emt 0:00:40]} a3 {[%emt 0:01:34]} 35. f4 {[%emt 0:01:30]} b5 {[%emt 0:00:00]} 36. g4 {[%emt 0:01:04]} b4 {[%emt 0:00:50]} 37. f5 {[%emt 0:01:06]} Bd7 {[%emt 0:00:02]} 38. f6 {[%emt 0:03:53]} gxf6 {[%emt 0:00:07]} 39. Qd8 {[%emt 0:01:03]} Kg7 {[%emt 0:02:18]} 40. g5 {[%emt 0:00:42]} Qc5+ {[%emt 0:00:57]} 41. Kf1 {[%emt 0:01:50]} Bb5+ {[%emt 0:00:06]} 42. Ke1 {[%emt 0:00:16]} Qg1+ {[%emt 0:00:02]} 43. Kd2 {[%emt 0:00:08]} Qxg2+ {[%emt 0:00:02]} 44. Kd1 {[%emt 0:00:05]} Qg1+ {[%emt 0:01:47]} 45. Kc2 {[%emt 0:00:10]} Qxg5 {[%emt 0:01:04]} 46. h4 {[%emt 0:00:16]} Qf5+ {[%emt 0:00:46]} 47. Kd2 {[%emt 0:00:22]} Qf2+ {[%emt 0:00:39]} 48. Kc1 {[%emt 0:00:07]} Ba4 {[%emt 0:01:08]} 0-1

[Event "21st Indian-chT Women 2023-24"]
[Site "Dharamsala"]
[Date "2024.04.04"]
[Round "7.7"]
[White "Anagha Yardi"]
[Black "Garima Gaurav"]
[Result "0-1"]
[ECO "D02"]
[WhiteElo "1482"]
[BlackElo "1786"]
[Annotator "NA RC"]
[PlyCount "68"]
[EventDate "2024.03.28"]
[EventType "team-tourn"]
[EventCountry "IND"]
[SourceTitle "playchess.com"]
[Source "ChessBase"]
[SourceQuality "1"]
[TimeControl "5400+30"]

1. d4 {[%emt 0:00:03]} d5 {[%emt 0:00:09]} 2. Bf4 {[%emt 0:00:10]} Nf6 {[%emt 0:00:06]} 3. e3 {[%emt 0:00:08]} e6 {[%emt 0:00:09]} 4. Nf3 {[%emt 0:00:24]} Be7 {[%emt 0:00:14]} 5. Be2 {[%emt 0:00:31]} Nbd7 {[%emt 0:00:12]} 6. h3 {[%emt 0:00:16]} b6 {[%emt 0:00:34]} 7. O-O {[%emt 0:02:19]} Bb7 {[%emt 0:00:24]} 8. Nbd2 {[%emt 0:00:23]} O-O {[%emt 0:01:40]} 9. c4 {[%emt 0:01:49]} c5 {[%emt 0:01:48]} 10. Bh2 {[%emt 0:01:09]} Ne4 {[%emt 0:02:51]} 11. Rc1 {[%emt 0:02:11]} f5 {[%emt 0:04:04]} 12. cxd5 {[%emt 0:03:50]} exd5 {[%emt 0:03:00]} 13. Qa4 {[%emt 0:04:27]} a6 {[%emt 0:04:46]} 14. Rfd1 {[%emt 0:09:21]} b5 {[%emt 0:02:14]} 15. Qc2 {[%emt 0:00:33]} Rc8 {[%emt 0:03:58]} 16. Qb1 {[%emt 0:01:31]} c4 {[%emt 0:03:31]} 17. Ne5 {[%emt 0:05:46]} Bd6 {[%emt 0:10:05]} 18. Ndf3 {[%emt 0:04:30]} Qe7 {[%emt 0:04:32]} 19. Bf4 {[%emt 0:05:33]} Bxe5 {[%emt 0:03:03]} 20. Bxe5 {[%emt 0:01:21]} g5 {[%emt 0:01:54]} 21. Bg3 {[%emt 0:07:18]} Nxg3 {[%emt 0:00:25]} 22. fxg3 {[%emt 0:00:10]} Qxe3+ {[%emt 0:00:04]} 23. Kf1 {[%emt 0:00:07]} g4 {[%emt 0:02:12]} 24. Rc3 {[%emt 0:00:34]} Qe7 {[%emt 0:02:58]} 25. Nh4 {[%emt 0:01:12]} b4 {[%emt 0:02:11]} 26. Rcc1 {[%emt 0:01:04]} Qe3 {[%emt 0:00:47]} 27. Nxf5 {[%emt 0:00:38]} Rxf5+ {[%emt 0:00:43]} 28. Qxf5 {[%emt 0:00:12]} Rf8 {[%emt 0:00:07]} 29. Qxf8+ {[%emt 0:00:21]} Kxf8 {[%emt 0:00:33]} 30. Bxg4 {[%emt 0:00:17]} Nf6 {[%emt 0:00:24]} 31. Bf3 {[%emt 0:00:52]} a5 {[%emt 0:01:52]} 32. Rc2 {[%emt 0:00:09]} c3 {[%emt 0:01:09]} 33. bxc3 {[%emt 0:01:44]} Ba6+ {[%emt 0:00:43]} 34. Be2 {[%emt 0:00:17]} Ne4 {[%emt 0:00:25]} 0-1